fUSD/lending_fUSD_20251128
["ID","MTS","AMOUNT","RATE_DAILY","PERIOD"]
[395039030,1764361836844,-558.16613137,0.00015581,2]
[395039032,1764361836852,-558.16613137,0.00015581,2]
[395039034,1764361836861,-558.16613137,0.00015581,2]
[395039036,1764361836869,-558.16613137,0.00015581,2]
[395039038,1764361836881,-558.16613137,0.00015581,2]
[395039040,1764361836890,-558.16613137,0.00015581,2]
[395039042,1764361836899,-558.16613137,0.00015581,2]
[395039044,1764361836908,-558.16613137,0.00015581,2]
[395039046,1764361836918,-558.16613137,0.00015581,2]
[395039048,1764361836927,-558.16613137,0.00015581,2]
[395039050,1764361836938,-558.16613137,0.00015581,2]
[395039052,1764361836948,-558.16613137,0.00015581,2]
[395039053,1764361836958,-558.16613137,0.00015581,2]
[395039055,1764361836968,-558.16613137,0.00015581,2]
[395039057,1764361836977,-558.16613137,0.00015581,2]
[395039059,1764361836988,-558.16613137,0.00015581,2]
[395039061,1764361836998,-558.16613137,0.00015581,2]
[395039063,1764361837008,-558.16613137,0.00015581,2]
[395039065,1764361837018,-558.16613137,0.00015581,2]
[395039067,1764361837027,-558.16613137,0.00015581,2]
[395039069,1764361837037,-558.16613137,0.00015581,2]
[395039071,1764361837047,-558.16613137,0.00015581,2]
[395039073,1764361837056,-558.16613137,0.00015581,2]
[395039075,1764361837065,-558.16613137,0.00015581,2]
[395039102,1764361837312,-558.16613137,0.00015581,2]
[395039104,1764361837325,-558.16613137,0.00015581,2]
[395039106,1764361837334,-558.16613137,0.00015581,2]
[395039108,1764361837346,-558.16613137,0.00015581,2]
[395039110,1764361837355,-558.16613137,0.00015581,2]
[395039112,1764361837365,-558.16613137,0.00015581,2]
[395039114,1764361837374,-558.16613137,0.00015581,2]
[395039116,1764361837385,-558.16613137,0.00015581,2]
[395039118,1764361837394,-558.16613137,0.00015581,2]
[395039120,1764361837403,-558.16613137,0.00015581,2]
[395039122,1764361837418,-558.16613137,0.00015581,2]
[395039123,1764361837429,-558.16613137,0.00015581,2]
[395039124,1764361837439,-558.16613137,0.00015581,2]
[395039125,1764361837448,-558.16613137,0.00015581,2]
[395039126,1764361837458,-558.16613137,0.00015581,2]
[395039127,1764361837467,-558.16613137,0.00015581,2]
[395039128,1764361837477,-535.36717321,0.00015581,2]
[395039129,1764361837490,-22.79895816,0.00015581,2]
[395039130,1764361837500,-375.04751453,0.00015581,2]
[395039131,1764361837527,-219.38960776,0.00015581,2]
[395039132,1764361837537,-150.00227516,0.00015581,2]
[395039133,1764361837586,-444.43484713,0.00015581,2]
[395039134,1764361837596,-594.43712229,0.00015581,2]
[395039135,1764361837606,-594.43712229,0.00015581,2]
[395039136,1764361837616,-594.43712229,0.00015581,2]
[395039137,1764361837626,-594.43712229,0.00015581,2]
[395039138,1764361837635,-594.43712229,0.00015581,2]
[395039139,1764361837645,-594.43712229,0.00015581,2]
[395039140,1764361837655,-288.94241897,0.00015581,2]
[395039151,1764361838306,-305.49470332,0.00015581,2]
[395039152,1764361838317,-207.97180934,0.00015581,2]
[395039153,1764361838335,-386.46531295,0.00015581,2]
[395039154,1764361838346,-594.43712229,0.00015581,2]
[395039155,1764361838355,-594.43712229,0.00015581,2]
[395039156,1764361838366,-594.43712229,0.00015581,2]
[395039157,1764361838376,-594.43712229,0.00015581,2]
[395039158,1764361838387,-594.43712229,0.00015581,2]
[395039159,1764361838396,-35.62643647,0.00015581,2]
[395039160,1764361838432,-558.81068582,0.00015581,2]
[395039161,1764361838442,-307.60187418,0.00015581,2]
[395039162,1764361838454,-286.83524811,0.00015581,2]
[395039163,1764361838464,-85.98091567,0.00015581,2]
[395039164,1764361838491,-508.45620662,0.00015581,2]
[395039165,1764361838507,-108.23162821,0.00015581,2]
[395039166,1764361838642,-486.20549408,0.00015581,2]
[395039167,1764361838662,-594.43712229,0.00015581,2]
[395039168,1764361838676,-594.43712229,0.00015581,2]
[395039169,1764361838696,-594.43712229,0.00015581,2]
[395039170,1764361838709,-594.43712229,0.00015581,2]
[395039171,1764361838730,-594.43712229,0.00015581,2]
[395039172,1764361838744,-594.43712229,0.00015581,2]
[395039173,1764361838782,-594.43712229,0.00015581,2]
[395039174,1764361838800,-594.43712229,0.00015581,2]
[395039175,1764361838818,-594.43712229,0.00015581,2]
[395039176,1764361838836,-594.43712229,0.00015581,2]
[395039177,1764361838853,-594.43712229,0.00015581,2]
[395039178,1764361838870,-594.43712229,0.00015581,2]
[395039179,1764361838886,-594.43712229,0.00015581,2]
[395039180,1764361838902,-594.43712229,0.00015581,2]
[395039181,1764361838920,-594.43712234,0.00015581,2]
[395039182,1764361838937,-594.43712234,0.00015581,2]
[395039183,1764361838953,-594.43712234,0.00015581,2]
[395039184,1764361838970,-224.18,0.00015583,2]
[395039185,1764361838987,-151.0,0.00015586,2]
[395039186,1764361839003,-151.0,0.00015586,2]
[395039187,1764361839020,-151.0,0.00015586,2]
[395039188,1764361839037,-267.39834543,0.00015588,2]
[395039189,1764361839053,-500.0,0.00015588,2]
[395039190,1764361839070,-305.0523606,0.00015588,2]
[395039191,1764361839086,-500.0,0.00015588,2]
[395039192,1764361839102,-175.39550031,0.00015588,2]
[395039193,1764361839119,-150.0,0.00015627,2]
[395039194,1764361839136,-500.0,0.00015688,2]
[395039195,1764361839153,-195.83178333,0.00015688,2]
[395039222,1764361841805,-244.54101567,0.00015688,2]
[395039223,1764361841815,-150.0,0.00015712,2]
[395039224,1764361841825,-479.0,0.00015738,2]
[395039225,1764361841835,-150.0,0.00015854,2]
[395039226,1764361841845,-224.18,0.00015857,2]
[395039227,1764361841855,-343.67355738,0.000159,2]
[395039228,1764361841864,-343.67355736,0.000159,2]
[395039229,1764361841873,-343.67355736,0.000159,2]
[395039230,1764361841883,-9.873554,0.00015967,2]
[395039231,1764361841911,-140.126446,0.00015967,2]
[395039232,1764361841922,-300.0,0.00015973,2]
[395039233,1764361841931,-500.0,0.00016,2]
[395039234,1764361841942,-500.0,0.00016,2]
[395039235,1764361841952,-500.0,0.00016,2]
[395039236,1764361841962,-500.0,0.00016,2]
[395039237,1764361841972,-500.0,0.00016,2]
[395039238,1764361841982,-500.0,0.00016,2]
[395039239,1764361841992,-500.0,0.00016,2]
[395039240,1764361842002,-500.0,0.00016,2]
[395039241,1764361842012,-500.0,0.00016,2]
[395039242,1764361842023,-500.0,0.00016,2]
[395039243,1764361842033,-500.0,0.00016,2]
[395039244,1764361842044,-500.0,0.00016,2]
[395039245,1764361842054,-386.23,0.00016,2]
[395039246,1764361842063,-500.0,0.00016,2]
[395039247,1764361842073,-339.57,0.00016,2]
[395039248,1764361842083,-500.0,0.00016,2]
[395039249,1764361842093,-500.0,0.00016,2]
[395039250,1764361842103,-500.0,0.00016,2]
[395039251,1764361842113,-500.0,0.00016,2]
[395039252,1764361842123,-500.0,0.00016,2]
[395039253,1764361842134,-500.0,0.00016,2]
[395039254,1764361842145,-500.0,0.00016,2]
[395039255,1764361842160,-500.0,0.00016,2]
[395039256,1764361842171,-500.0,0.00016,2]
[395039257,1764361842180,-500.0,0.00016,2]
[395039258,1764361842190,-500.0,0.00016,2]
[395039259,1764361842200,-500.0,0.00016,2]
[395039260,1764361842211,-500.0,0.00016,2]
[395039261,1764361842220,-500.0,0.00016,2]
[395039262,1764361842230,-500.0,0.00016,2]
[395039263,1764361842240,-500.0,0.00016,2]
[395039264,1764361842250,-500.0,0.00016,2]
[395039265,1764361842260,-500.0,0.00016,2]
[395039266,1764361842270,-500.0,0.00016,2]
[395039267,1764361842284,-500.0,0.00016,2]
[395039268,1764361842294,-500.0,0.00016,2]
[395039269,1764361842304,-500.0,0.00016,2]
[395039270,1764361842317,-500.0,0.00016,2]
[395039271,1764361842327,-500.0,0.00016,2]
[395039272,1764361842337,-500.0,0.00016,2]
[395039273,1764361842349,-500.0,0.00016,2]
[395039274,1764361842359,-500.0,0.00016,2]
[395039275,1764361842369,-500.0,0.00016,2]
[395039276,1764361842380,-500.0,0.00016,2]
[395039277,1764361842391,-500.0,0.00016,2]
[395039278,1764361842403,-500.0,0.00016,2]
[395039279,1764361842412,-500.0,0.00016,2]
[395039280,1764361842423,-500.0,0.00016,2]
[395039281,1764361842432,-500.0,0.00016,2]
[395039282,1764361842442,-500.0,0.00016,2]
[395039283,1764361842451,-500.0,0.00016,2]
[395039284,1764361842462,-500.0,0.00016,2]
[395039285,1764361842472,-500.0,0.00016,2]
[395039286,1764361842484,-588.51,0.00016,2]
[395039287,1764361842494,-500.0,0.00016,2]
[395039288,1764361842504,-500.0,0.00016,2]
[395039289,1764361842514,-500.0,0.00016,2]
[395039290,1764361842523,-500.0,0.00016,2]
[395039291,1764361842533,-500.0,0.00016,2]
[395039292,1764361842543,-500.0,0.00016,2]
[395039293,1764361842552,-500.0,0.00016,2]
[395039294,1764361842562,-500.0,0.00016,2]
[395039295,1764361842572,-500.0,0.00016,2]
[395039296,1764361842582,-500.0,0.00016,2]
[395039297,1764361842591,-500.0,0.00016,2]
[395039298,1764361842601,-500.0,0.00016,2]
[395039299,1764361842610,-500.0,0.00016,2]
[395039300,1764361842620,-500.0,0.00016,2]
[395039301,1764361842630,-500.0,0.00016,2]
[395039302,1764361842640,-500.0,0.00016,2]
[395039303,1764361842649,-500.0,0.00016,2]
[395039304,1764361842659,-500.0,0.00016,2]
[395039305,1764361842672,-500.0,0.00016,2]
[395039306,1764361842682,-500.0,0.00016,2]
[395039307,1764361842692,-500.0,0.00016,2]
[395039308,1764361842703,-500.0,0.00016,2]
[395039309,1764361842712,-500.0,0.00016,2]
[395039310,1764361842722,-500.0,0.00016,2]
[395039311,1764361842732,-500.0,0.00016,2]
[395039312,1764361842742,-500.0,0.00016,2]
[395039313,1764361842752,-271.16,0.00016,2]
[395039314,1764361842762,-1000.0,0.00016121,2]
[395039315,1764361842772,-1000.0,0.00016121,2]
[395039316,1764361842782,-150.0,0.00016137,2]
[395039317,1764361842792,-150.0,0.00016137,2]
[395039318,1764361842803,-150.0,0.00016137,2]
[395039319,1764361842813,-150.0,0.00016137,2]
[395039320,1764361842822,-300.0,0.00016149,2]
[395039321,1764361842833,-500.0,0.00016149,2]
[395039322,1764361842843,-500.0,0.00016149,2]
[395039323,1764361842852,-500.0,0.00016149,2]
[395039325,1764361842861,-500.0,0.00016149,2]
[395039327,1764361842873,-500.0,0.00016149,2]
[395039329,1764361842883,-553.64373807,0.00016149,2]
[395039331,1764361842893,-500.0,0.00016149,2]
[395039333,1764361842903,-500.0,0.00016149,2]
[395039335,1764361842913,-500.0,0.00016149,2]
[395039337,1764361842924,-500.0,0.00016149,2]
[395039339,1764361842933,-500.0,0.00016149,2]
[395039341,1764361842944,-500.0,0.00016149,2]
[395039342,1764361842954,-386.87667747,0.00016149,2]
[395039343,1764361842964,-500.0,0.00016149,2]
[395039344,1764361842974,-500.0,0.00016149,2]
[395039345,1764361842984,-500.0,0.00016149,2]
[395039346,1764361842994,-500.0,0.00016149,2]
[395039347,1764361843004,-500.0,0.00016149,2]
[395039348,1764361843014,-476.78534353,0.00016149,2]
[395039349,1764361843023,-500.0,0.00016149,2]
[395039350,1764361843033,-500.0,0.00016149,2]
[395039351,1764361843043,-500.0,0.00016149,2]
[395039352,1764361843053,-500.0,0.00016149,2]
[395039353,1764361843063,-500.0,0.00016149,2]
[395039354,1764361843073,-500.0,0.00016149,2]
[395039355,1764361843083,-500.0,0.00016149,2]
[395039356,1764361843095,-500.0,0.00016149,2]
[395039357,1764361843105,-151.0,0.00016149,2]
[395039358,1764361843115,-267.46074303,0.00016149,2]
[395039359,1764361843125,-263.95200002,0.00016149,2]
[395039360,1764361843135,-1758.25321317,0.000162,5]
[395039361,1764361843145,-224.84754656,0.00016214,2]
[395039362,1764361843160,-150.0,0.00016307,2]
[395039363,1764361843170,-162.04,0.0001633,2]
[395039364,1764361843180,-150.0,0.0001642,2]
[395039365,1764361843189,-500.0,0.00016438,2]
[395039366,1764361843199,-373.20665202,0.00016438,2]
[395039367,1764361843209,-500.0,0.00016438,2]
[395039368,1764361843219,-500.0,0.00016438,2]
[395039369,1764361843229,-600.0,0.00016438,2]
[395039370,1764361843238,-257.05910787,0.00016438,2]
[395039371,1764361843248,-150.0,0.00016562,2]
[395039372,1764361843266,-150.0,0.00016647,2]
[395039373,1764361843277,-1500.0,0.00016668,2]
[395039374,1764361843288,-1500.0,0.00016668,2]
[395039375,1764361843298,-574.12855637,0.00016697,2]
[395039376,1764361843309,-150.0,0.00016703,2]
[395039377,1764361843320,-600.0,0.00016712,2]
[395039378,1764361843330,-300.0,0.00016726,2]
[395039379,1764361843342,-167.12,0.00016762,2]
[395039380,1764361843352,-168.0,0.00016879,2]
[395039393,1764361843794,-341.08842792,0.000169,2]
[395039394,1764361843806,-224.84754656,0.000169,2]
[395039395,1764361843816,-341.81630628,0.000169,2]
[395039396,1764361843826,-528.9438906,0.000169,2]
[395039397,1764361843835,-184.3291987,0.000169,2]
[395039398,1764361843844,-260.51683099,0.000169,2]
[395039399,1764361843854,-500.0,0.00016973,2]
[395039400,1764361843864,-500.0,0.00016973,2]
[395039401,1764361843874,-150.0,0.00016973,2]
[395039402,1764361843883,-150.0,0.00016973,2]
[395039403,1764361843893,-150.0,0.00016973,2]
[395039404,1764361843902,-203.81467987,0.00016973,2]
[395039405,1764361843912,-150.0,0.00016973,2]
[395039406,1764361843921,-150.0,0.00016973,2]
[395039407,1764361843931,-150.0,0.00016973,2]
[395039408,1764361843941,-500.0,0.00016983,2]
[395039409,1764361843951,-600.0,0.00016986,2]
[395039410,1764361843961,-150.0,0.00016986,2]
[395039411,1764361843971,-150.0,0.00016986,2]
[395039412,1764361843980,-150.0,0.00016986,2]
[395039413,1764361843990,-150.0,0.00016986,2]
[395039414,1764361843999,-150.0,0.00016986,2]
[395039415,1764361844009,-150.0,0.00016986,2]
[395039416,1764361844020,-150.0,0.00016986,2]
[395039417,1764361844029,-300.290413,0.00016997,2]
[395039418,1764361844039,-151.0,0.00016997,2]
[395039419,1764361844049,-831.0,0.00016997,2]
[395039420,1764361844058,-3384.1218375,0.00016999,2]
[395039421,1764361844068,-10780.0953591,0.00016999,2]
[395039422,1764361844078,-300.0,0.00016999,2]
[395039423,1764361844088,-2482.0,0.00017,2]
[395039424,1764361844097,-432302.20151685,0.00017,2]
[395039425,1764361844142,-3646.93352872,0.00017,2]
[395039426,1764361844182,-550.75599993,0.00017,2]
[395039427,1764361844193,-405.494,0.00017,2]
[395039428,1764361845451,-940.372799,0.00017,2]
[395039429,1764361845510,-10584.98538417,0.00017,2]
[395039430,1764361845521,-301.26034075,0.00017,2]
[395039431,1764361845552,-15252.33589225,0.00017,2]
[395039438,1764361847275,-2845.69356486,0.00017,2]
[395039439,1764361847286,-11186.86175,0.00017,2]
[395039440,1764361847318,-3924.21058312,0.00017,2]
[395039441,1764361847329,-4161.59892156,0.00017,2]
[395039442,1764361847344,-242962.67588212,0.00017,2]
[395039443,1764361847354,-457631.46815178,0.00017,2]
[395039444,1764361847366,-655.0,0.00017,2]
[395039445,1764361847378,-282.635,0.00017,2]
[395039446,1764361847389,-420.0,0.00017,2]
[395039453,1764362326721,166.66,0.00014622,2]
[395039454,1764362453615,-180.94040381,0.00014869,2]
[395039455,1764362574489,150.0,0.0001466,2]
[395039456,1764362605130,2091.64,0.00014713,2]
[395039457,1764362617997,-1000.0,0.00014738,2]
[395039458,1764362618018,-200.37031643,0.00014813,2]
[395039459,1764362722979,-483.74802053,0.00014738,2]
[395039460,1764362725195,-195.0,0.00014738,2]
[395039461,1764362726757,-200.17707136,0.00014738,2]
[395039462,1764362728478,-250.0,0.00014738,2]
[395039463,1764362742135,158.01,7.318e-05,2]
[395039464,1764362742368,158.01,7.806e-05,2]
[395039465,1764362742556,158.01,8.294e-05,2]
[395039466,1764362742765,158.01,8.782e-05,2]
[395039467,1764362742972,158.01,9.27e-05,2]
[395039468,1764362743194,158.01,9.758e-05,2]
[395039469,1764362743393,158.01,0.00010246,2]
[395039470,1764362743597,158.01,0.00010733,2]
[395039471,1764362743832,158.01,0.00011221,2]
[395039472,1764362744033,158.01,0.00011709,2]
[395039473,1764362744236,158.01,0.00012197,2]
[395039474,1764362744547,158.01,0.00012685,2]
[395039475,1764362744744,158.01,0.00013173,2]
[395039476,1764362744984,158.01,0.00013661,2]
[395039477,1764362745328,158.01,0.00014149,2]
[395039478,1764362745409,158.01,0.00014637,2]
[395039492,1764362885622,2098.25,0.00014669,2]
[395039613,1764363032163,-49.62968357,0.00014813,2]
[395039614,1764363032174,-250.0,0.00014841,2]
[395039615,1764363032184,-19.05959619,0.00014869,2]
[395039616,1764363032196,-166.66,0.00014929,2]
[395039617,1764363032206,-250.0,0.00015007,2]
[395039618,1764363032216,-152.19329144,0.00015188,2]
[395039619,1764363032226,-166.66,0.00015237,2]
[395039620,1764363032235,-498.0,0.00015287,2]
[395039621,1764363032245,-300.0,0.00015287,2]
[395039622,1764363032254,-1200.0,0.00015287,2]
[395039623,1764363032264,-300.0,0.00015287,2]
[395039624,1764363032273,-150.0,0.00015288,2]
[395039625,1764363032283,-150.0,0.00015288,2]
[395039626,1764363032293,-150.0,0.00015288,2]
[395039627,1764363032303,-150.0,0.00015288,2]
[395039628,1764363032314,-162.19986855,0.00015288,2]
[395039629,1764363032325,-150.0,0.00015288,2]
[395039630,1764363032337,-150.0,0.00015288,2]
[395039631,1764363032349,-44.52675387,0.00015288,2]
[395039633,1764363032402,-105.88472038,0.00015288,2]
[395039635,1764363032413,-151.54770866,0.00015288,2]
[395039637,1764363032423,-245.21708377,0.00015288,2]
[395039639,1764363032433,-150.0,0.00015288,2]
[395039641,1764363032445,-150.0,0.00015288,2]
[395039643,1764363032455,-152.0,0.00015319,2]
[395039645,1764363032465,-152.0,0.00015319,2]
[395039647,1764363032475,-152.0,0.00015319,2]
[395039649,1764363032486,-152.0,0.00015319,2]
[395039651,1764363032496,-152.0,0.00015319,2]
[395039653,1764363032505,-22.45547486,0.00015319,2]
[395039655,1764363032517,-129.54452514,0.00015319,2]
[395039657,1764363032526,-152.0,0.00015319,2]
[395039659,1764363032536,-152.0,0.00015319,2]
[395039661,1764363032545,-152.0,0.00015319,2]
[395039664,1764363032555,-152.0,0.00015319,2]
[395039666,1764363032564,-152.0,0.00015319,2]
[395039668,1764363032573,-152.0,0.00015319,2]
[395039670,1764363032582,-152.0,0.00015319,2]
[395039672,1764363032591,-152.0,0.00015319,2]
[395039674,1764363032601,-152.0,0.00015319,2]
[395039675,1764363032610,-152.0,0.00015319,2]
[395039678,1764363032619,-152.0,0.0001536,2]
[395039679,1764363032629,-152.0,0.0001536,2]
[395039682,1764363032639,-152.0,0.0001536,2]
[395039683,1764363032648,-152.0,0.0001536,2]
[395039685,1764363032657,-152.0,0.0001536,2]
[395039687,1764363032666,-152.0,0.0001536,2]
[395039689,1764363032674,-152.0,0.0001536,2]
[395039691,1764363032683,-152.0,0.0001536,2]
[395039694,1764363032693,-152.0,0.0001536,2]
[395039696,1764363032702,-164.90370914,0.00015401,2]
[395039698,1764363032711,-260.51683099,0.00015401,2]
[395039699,1764363032720,-154.67616192,0.00015401,2]
[395039701,1764363032729,-879.37534397,0.0001543,2]
[395039704,1764363032739,-500.0,0.00015471,2]
[395039706,1764363032748,-321.13998193,0.00015471,2]
[395039708,1764363032757,-200.0,0.00015471,2]
[395039709,1764363032766,-286.96340635,0.00015471,2]
[395039712,1764363032776,-300.0,0.00015472,2]
[395039714,1764363032785,-503.66867124,0.00015473,2]
[395039716,1764363032794,-500.0,0.00015473,2]
[395039718,1764363032803,-500.0,0.00015473,2]
[395039720,1764363032812,-501.29612082,0.00015473,2]
[395039722,1764363032821,-462.02090096,0.00015473,2]
[395039724,1764363032830,-197.56,0.00015479,2]
[395039726,1764363032839,-500.0,0.0001548,2]
[395039727,1764363032852,-187.1788418,0.0001548,2]
[395039729,1764363032860,-213.53665242,0.0001548,2]
[395039731,1764363032870,-322.77685021,0.0001548,2]
[395039733,1764363032879,-500.0,0.0001548,2]
[395039734,1764363032889,-532.03622096,0.0001548,2]
[395039736,1764363032898,-500.0,0.0001548,2]
[395039738,1764363032908,-500.0,0.0001548,2]
[395039739,1764363032917,-176.63644013,0.0001548,2]
[395039740,1764363032928,-500.0,0.0001548,2]
[395039741,1764363032937,-500.0,0.0001548,2]
[395039742,1764363032948,-500.0,0.0001548,2]
[395039743,1764363032957,-276.42026787,0.0001548,2]
[395039744,1764363032967,-500.0,0.0001548,2]
[395039745,1764363032976,-500.0,0.0001548,2]
[395039746,1764363032985,-500.0,0.0001548,2]
[395039747,1764363032994,-500.0,0.0001548,2]
[395039748,1764363033003,-500.0,0.0001548,2]
[395039749,1764363033012,-500.0,0.0001548,2]
[395039750,1764363033021,-500.0,0.0001548,2]
[395039751,1764363033030,-500.0,0.0001548,2]
[395039752,1764363033041,-500.0,0.0001548,2]
[395039753,1764363033051,-500.0,0.0001548,2]
[395039754,1764363033060,-500.0,0.0001548,2]
[395039755,1764363033069,-500.0,0.0001548,2]
[395039756,1764363033079,-500.0,0.0001548,2]
[395039757,1764363033087,-500.0,0.0001548,2]
[395039758,1764363033096,-500.0,0.0001548,2]
[395039759,1764363033105,-500.0,0.0001548,2]
[395039760,1764363033115,-500.0,0.0001548,2]
[395039761,1764363033125,-500.0,0.0001548,2]
[395039762,1764363033135,-500.0,0.0001548,2]
[395039763,1764363033144,-454.44318194,0.0001548,2]
[395039764,1764363033154,-500.0,0.0001548,2]
[395039765,1764363033164,-500.0,0.0001548,2]
[395039766,1764363033173,-500.0,0.0001548,2]
[395039767,1764363033182,-500.0,0.0001548,2]
[395039768,1764363033191,-500.0,0.0001548,2]
[395039769,1764363033473,-500.0,0.0001548,2]
[395039770,1764363033482,-500.0,0.0001548,2]
[395039771,1764363033492,-500.0,0.0001548,2]
[395039772,1764363033501,-500.0,0.0001548,2]
[395039773,1764363033511,-500.0,0.0001548,2]
[395039774,1764363033520,-500.0,0.0001548,2]
[395039775,1764363033530,-500.0,0.0001548,2]
[395039776,1764363033540,-462.374,0.0001548,2]
[395039777,1764363033549,-332.62709138,0.0001548,2]
[395039778,1764363033559,-500.0,0.0001548,2]
[395039779,1764363033568,-102306.66368832,0.00015481,2]
[395039780,1764363033603,-970.58787106,0.00015481,2]
[395039781,1764363033615,-916.31350998,0.00015481,2]
[395039782,1764363033633,-495.286784,0.00015481,2]
[395039785,1764363038121,-91212.99999999,0.00015481,2]
[395039787,1764363038178,-893.89998732,0.00015481,2]
[395039788,1764363038200,-819.60460336,0.00015481,2]
[395039789,1764363038243,-995.02582332,0.00015481,2]
[395039814,1764363040224,-10790.29324873,0.00015481,2]
[395039825,1764363040347,-1.7e-07,0.00015481,2]
[395039826,1764363040381,-86166.00000003,0.00015481,2]
[395039827,1764363040392,-1297.56,0.00015481,2]
[395039828,1764363040403,-451583.40948372,0.00015481,2]
[395039829,1764363040413,-150.0,0.0001553,2]
[395039830,1764363040423,-166.66,0.00015545,2]
[395039831,1764363040432,-164.90370911,0.00015588,2]
[395039832,1764363040442,-154.67616185,0.00015615,2]
[395039833,1764363040453,-150.0,0.00015627,2]
[395039834,1764363040462,-150.0,0.00015712,2]
[395039835,1764363040471,-197.56,0.00015753,2]
[395039836,1764363040480,-150.0,0.00015773,2]
[395039837,1764363040489,-164.90370911,0.00015776,2]
[395039838,1764363040499,-154.67616185,0.00015829,2]
[395039839,1764363040508,-166.66,0.00015853,2]
[395039840,1764363040517,-150.0,0.00015854,2]
[395039841,1764363040526,-150.0,0.00015854,2]
[395039842,1764363040536,-224.84754656,0.000159,2]
[395039843,1764363040546,-328.59908711,0.000159,2]
[395039844,1764363040555,-328.59908711,0.000159,2]
[395039845,1764363040565,-164.90370911,0.00015963,2]
[395039846,1764363040575,-150.0,0.00015967,2]
[395039847,1764363040584,-615.51796754,0.00015973,2]
[395039848,1764363040594,-500.0,0.00016,2]
[395039849,1764363040603,-500.0,0.00016,2]
[395039850,1764363040613,-500.0,0.00016,2]
[395039851,1764363040622,-500.0,0.00016,2]
[395039852,1764363040631,-500.0,0.00016,2]
[395039853,1764363040640,-500.0,0.00016,2]
[395039854,1764363040651,-500.0,0.00016,2]
[395039855,1764363040660,-500.0,0.00016,2]
[395039856,1764363040669,-500.0,0.00016,2]
[395039857,1764363040678,-500.0,0.00016,2]
[395039858,1764363040687,-500.0,0.00016,2]
[395039859,1764363040697,-500.0,0.00016,2]
[395039860,1764363040706,-500.0,0.00016,2]
[395039861,1764363040715,-500.0,0.00016,2]
[395039862,1764363040725,-500.0,0.00016,2]
[395039863,1764363040734,-500.0,0.00016,2]
[395039864,1764363040743,-500.0,0.00016,2]
[395039865,1764363040753,-500.0,0.00016,2]
[395039866,1764363040762,-500.0,0.00016,2]
[395039867,1764363040771,-500.0,0.00016,2]
[395039868,1764363040780,-500.0,0.00016,2]
[395039869,1764363040789,-500.0,0.00016,2]
[395039870,1764363040799,-500.0,0.00016,2]
[395039871,1764363040808,-500.0,0.00016,2]
[395039872,1764363040817,-500.0,0.00016,2]
[395039873,1764363040826,-500.0,0.00016,2]
[395039874,1764363040835,-500.0,0.00016,2]
[395039875,1764363040845,-500.0,0.00016,2]
[395039876,1764363040858,-500.0,0.00016,2]
[395039877,1764363040868,-474.74,0.00016,2]
[395039878,1764363040877,-500.0,0.00016,2]
[395039879,1764363040887,-500.0,0.00016,2]